bitfinex/quotes_ETHUSD_20250726
["timestamp","ask_amount","ask_price","bid_price","bid_amount"]
[1753557073927,3.0,3747.9,3747.8,4.79553507]
[1753557073928,5.424,3747.9,3747.8,4.79553507]
[1753557074072,7.18,3748.1,3748.0,3.48598964]
[1753557074275,12.604,3748.1,3748.0,5.30550211]
[1753557075789,12.604,3748.1,3748.0,2.63741247]
[1753557076090,5.424,3748.1,3748.0,2.63741247]
[1753557077608,5.424,3748.1,3748.0,1.8865]
[1753557078412,3.0,3748.1,3748.0,1.8865]
[1753557078626,5.424,3748.1,3748.0,1.4426]
[1753557078978,5.424,3748.1,3748.0,0.9515]
[1753557079287,5.66801846,3748.1,3748.0,0.8179]
[1753557079487,3.0,3748.0,3747.8,0.7951]
[1753557079719,2.424,3747.9,3747.8,0.7951]
[1753557080984,5.424,3747.9,3747.8,0.7951]
[1753557083088,2.424,3747.9,3747.8,0.7951]
[1753557085435,3.0,3748.1,3747.8,1.10906339]
[1753557085588,2.424,3748.0,3747.9,0.4911]
[1753557086504,3.0,3748.1,3747.9,0.4911]
[1753557086827,2.424,3748.0,3747.9,0.4911]
[1753557087321,3.0,3748.1,3747.8,0.7951]
[1753557087499,2.424,3748.0,3747.9,0.4439]
[1753557087825,2.424,3748.0,3747.8,0.7951]
[1753557088420,2.424,3747.9,3747.8,0.7951]
[1753557088896,5.66802349,3748.1,3747.8,0.7951]
[1753557089225,2.424,3748.0,3747.9,0.4911]
[1753557089431,2.424,3748.0,3747.9,1.2503]
[1753557089628,0.1336,3748.2,3747.9,1.6942]
[1753557089834,2.424,3748.0,3747.9,0.7592]
[1753557090406,2.424,3748.0,3747.9,1.2503]
[1753557090712,2.424,3748.0,3747.9,1.6942]
[1753557095043,2.424,3748.0,3747.9,4.36236083]
[1753557095244,2.424,3748.0,3747.9,3.42836083]
[1753557095400,2.424,3748.0,3747.9,4.36336083]
[1753557095941,0.002,3748.1,3747.9,4.36336083]
[1753557096105,2.424,3748.0,3747.9,3.87226083]
[1753557096537,2.424,3748.0,3747.9,1.2041]
[1753557096709,2.424,3748.0,3747.9,1.6952]
[1753557097106,2.424,3748.0,3747.9,3.91946083]
[1753557099242,0.002,3748.1,3747.9,3.91946083]
[1753557099562,2.423,3748.0,3747.9,3.91946083]
[1753557102514,2.423,3748.0,3747.9,4.36436083]
[1753557103144,0.002,3748.1,3748.0,2.66808964]
[1753557103352,2.425,3748.1,3748.0,2.66808964]
[1753557103956,0.002,3748.1,3748.0,2.66808964]
[1753557104363,2.425,3748.1,3748.0,2.66808964]
[1753557107139,0.002,3748.1,3748.0,2.66808964]
[1753557107457,2.425,3748.1,3747.9,3.42833914]
[1753557108231,0.002,3748.1,3748.0,2.66808964]
[1753557108561,2.425,3748.1,3748.0,2.66808964]
[1753557109059,0.002,3748.1,3748.0,3.34072276]
[1753557109243,2.425,3748.1,3748.0,1.30043312]
[1753557109449,2.425,3748.1,3748.0,0.80623312]
[1753557109643,2.425,3748.1,3748.0,0.1336]
[1753557111770,2.425,3748.1,3748.0,2.80168964]
[1753557112567,2.9127,3748.1,3748.0,2.80168964]
[1753557113466,2.425,3748.1,3748.0,2.80168964]
[1753557115775,0.002,3748.1,3748.0,2.80168964]
[1753557115972,2.425,3748.1,3748.0,2.80168964]
[1753557119056,2.9127,3748.1,3748.0,2.80168964]
[1753557121570,2.425,3748.1,3748.0,2.80168964]
[1753557122147,2.9127,3748.1,3748.0,2.80168964]
[1753557124478,2.425,3748.1,3748.0,2.80168964]
[1753557127446,0.002,3748.1,3748.0,2.80168964]
[1753557127648,2.424,3748.1,3748.0,3.29588964]
[1753557127942,2.424,3748.1,3748.0,2.80168964]
[1753557133687,2.879,3748.1,3748.0,2.80168964]
[1753557133889,0.002,3748.1,3748.0,2.80168964]
[1753557134089,2.424,3748.1,3748.0,2.80168964]
[1753557134284,2.424,3748.1,3748.0,3.27418964]
[1753557135386,2.424,3748.1,3748.0,2.80168964]
[1753557137262,3.3216,3748.1,3748.0,2.80168964]
[1753557144031,2.424,3748.1,3748.0,2.80168964]
[1753557147600,3.3216,3748.1,3748.0,2.80168964]
[1753557153445,2.879,3748.1,3748.0,2.80168964]
[1753557154312,3.3216,3748.1,3748.0,2.80168964]
[1753557163258,0.457,3748.1,3748.0,2.80168964]
[1753557163460,0.002,3748.1,3748.0,3.85766264]
[1753557164162,0.002,3748.1,3748.0,3.37566264]
[1753557164357,0.002,3748.1,3748.0,3.34898175]
[1753557165266,0.002,3748.1,3748.0,3.83098175]
[1753557165633,0.002,3748.1,3748.0,3.34898175]
[1753557168963,0.002,3748.1,3748.0,5.10076264]
[1753557169481,0.002,3748.1,3748.0,4.12398175]
[1753557169776,0.002,3748.1,3748.0,5.10076264]
[1753557170067,1e-08,3748.1,3748.0,5.10076264]
[1753557171455,1e-08,3748.1,3748.0,4.63266264]
[1753557171659,1e-08,3748.1,3748.0,10.33368747]
[1753557171844,1e-08,3748.1,3748.0,10.30700658]
[1753557172868,1e-08,3748.1,3748.0,11.18355948]
[1753557182188,1e-08,3748.1,3748.0,10.71545948]
[1753557184951,1e-08,3748.1,3748.0,11.18355948]
[1753557186185,1e-08,3748.1,3748.0,10.71545948]
[1753557194468,1e-08,3748.1,3748.0,11.18355948]
[1753557194790,1e-08,3748.1,3748.0,10.30533181]
[1753557195191,1e-08,3748.1,3748.0,9.83463181]
[1753557197796,1e-08,3748.1,3748.0,9.35523181]
[1753557198800,0.95640001,3748.1,3748.0,5.76898175]
[1753557199000,0.95640001,3748.1,3748.0,5.22168964]
[1753557202397,0.95640001,3748.1,3748.0,2.80168964]
[1753557202700,0.95640001,3748.1,3748.0,5.22168964]
[1753557203202,0.95640001,3748.1,3748.0,2.80168964]
[1753557203502,1.74580001,3748.1,3748.0,2.80168964]
[1753557203880,1.74580001,3748.1,3748.0,2.80268964]
[1753557204077,1.74580001,3748.1,3748.0,0.1346]
[1753557208077,1.74580001,3748.1,3748.0,2.80268964]
[1753557208695,0.95640001,3748.1,3748.0,2.80268964]
[1753557210130,1e-08,3748.1,3748.0,2.80268964]
[1753557210287,1e-08,3748.1,3748.0,3.37942989]
[1753557210492,1e-08,3748.1,3748.0,3.352749]
[1753557210711,1e-08,3748.1,3748.0,7.500849]
[1753557212590,0.002,3748.4,3748.0,7.500849]
[1753557212591,1e-08,3748.4,3748.3,2.6678761]
[1753557212790,1e-08,3748.4,3748.3,9.58232368]
[1753557213026,1e-08,3748.4,3748.3,11.39955877]
[1753557213194,1e-08,3748.4,3748.3,12.34965877]
[1753557214989,1e-08,3748.4,3748.3,11.87895877]
[1753557215496,1e-08,3748.4,3748.3,7.70978995]
[1753557215497,0.49080001,3748.4,3748.3,7.70978995]
[1753557215696,0.49080001,3748.4,3748.3,6.93178995]
[1753557216037,1e-08,3748.4,3748.3,6.93178995]
[1753557218826,0.95640001,3748.4,3748.3,6.93078995]
[1753557220052,0.49080001,3748.4,3748.3,6.93078995]
[1753557220347,1e-08,3748.4,3748.3,6.93078995]
[1753557222254,0.49080001,3748.4,3748.3,6.93078995]
[1753557223332,0.95010001,3748.4,3748.3,6.93078995]
[1753557224166,1e-08,3748.4,3748.3,6.93078995]
[1753557226283,1e-08,3748.4,3748.3,5.2204761]
[1753557226568,1e-08,3748.4,3748.3,5.24715486]
[1753557226882,1e-08,3748.4,3748.3,2.82815486]
[1753557227083,0.94710001,3748.4,3748.3,2.8014761]
[1753557228339,0.94710001,3748.4,3748.3,3.8598972]
[1753557233187,0.48780001,3748.4,3748.3,3.8598972]
[1753557233387,0.48780001,3748.4,3748.3,3.88657596]
[1753557233750,0.48780001,3748.4,3748.3,3.8598972]
[1753557234593,0.94710001,3748.4,3748.3,3.8598972]
[1753557234889,0.48780001,3748.4,3748.3,3.8598972]
[1753557235852,0.94710001,3748.4,3748.3,3.8598972]
[1753557239256,0.94710001,3748.4,3748.3,2.8014761]
[1753557240985,0.94710001,3748.4,3748.3,5.2204761]
[1753557242895,0.94710001,3748.4,3748.3,2.8014761]
[1753557247505,0.94710001,3748.4,3748.3,2.8024761]
[1753557252419,0.94710001,3748.4,3748.3,0.1346]
[1753557252787,0.94710001,3748.4,3748.3,2.8024761]
[1753557253513,0.94710001,3748.4,3748.3,0.1346]
[1753557253725,1.11746001,3748.4,3748.3,0.1346]
[1753557253889,0.94710001,3748.4,3748.3,2.8024761]
[1753557254221,0.94710001,3748.4,3748.3,0.1346]
[1753557256425,0.94710001,3748.4,3748.3,2.8024761]
[1753557262438,1e-08,3748.4,3748.3,2.8024761]
[1753557262609,0.91390001,3748.4,3748.3,2.8024761]
[1753557263237,0.91390001,3748.4,3748.3,0.1346]
[1753557265540,0.91390001,3748.4,3748.3,2.8024761]
[1753557266623,0.91390001,3748.4,3748.3,0.1346]
[1753557268950,0.91390001,3748.4,3748.3,2.8024761]
[1753557269246,1e-08,3748.4,3748.3,4.27473076]
[1753557269545,1e-08,3748.4,3748.3,4.30140952]
[1753557270410,1e-08,3748.4,3748.3,4.16130952]
[1753557270647,1e-08,3748.4,3748.3,5.08640952]
[1753557271543,1e-08,3748.4,3748.3,4.65360952]
[1753557271748,1e-08,3748.4,3748.3,5.08640952]
[1753557272658,1e-08,3748.4,3748.3,4.65360952]
[1753557273113,1e-08,3748.4,3748.3,4.62693076]
[1753557273314,1e-08,3748.4,3748.3,4.65360952]
[1753557273546,1e-08,3748.4,3748.3,3.37630952]
[1753557273745,0.91390001,3748.4,3748.3,3.34963076]
[1753557274447,1.70890001,3748.4,3748.3,0.1346]
[1753557277250,1.70890001,3748.4,3748.3,0.001]
[1753557277856,7.37670494,3748.4,3748.3,0.001]
[1753557278023,37.37670494,3748.4,3748.3,0.001]
[1753557280773,37.92670494,3748.4,3748.3,0.001]
[1753557281232,7.92670494,3748.4,3748.3,0.001]
[1753557281642,37.92670494,3748.4,3748.3,0.001]
[1753557284653,40.34570494,3748.4,3748.3,0.001]
[1753557285753,37.92670494,3748.4,3748.3,0.001]
[1753557285967,40.34570494,3748.4,3748.3,0.001]
[1753557286564,10.34570494,3748.4,3748.3,0.001]
[1753557286867,40.34570494,3748.4,3748.3,0.001]
[1753557287530,10.34570494,3748.4,3748.3,0.001]
[1753557287862,40.34570494,3748.4,3748.3,0.001]
[1753557288550,10.34570494,3748.4,3748.3,0.001]
[1753557288862,40.34570494,3748.4,3748.3,0.001]
[1753557291983,47.52570494,3748.4,3748.3,0.001]
[1753557292369,10.97500001,3748.4,3748.3,0.001]
[1753557292580,7.97500001,3748.4,3748.3,0.001]
[1753557292883,12.59900001,3748.4,3748.3,0.457]
[1753557293552,3.00000001,3748.4,3748.3,3.7004761]
[1753557293747,5.41900001,3748.4,3748.3,4.07062371]
[1753557294153,1e-08,3748.4,3748.3,4.07062371]
[1753557294377,1e-08,3748.4,3748.3,4.84942371]
[1753557301094,1e-08,3748.4,3748.3,3.17262371]
[1753557303098,1e-08,3748.4,3748.3,3.19930247]
[1753557303302,1e-08,3748.4,3748.3,3.65530247]
[1753557307107,1e-08,3748.4,3748.3,3.17262371]
[1753557318824,1e-08,3748.4,3748.3,3.66102371]
[1753557320222,1e-08,3748.4,3748.3,3.17262371]
[1753557330743,0.90010001,3748.4,3748.3,2.8024761]
[1753557331036,0.90010001,3748.4,3748.3,0.1346]
[1753557332023,1.72980001,3748.4,3748.3,0.1346]
[1753557332244,1.72980001,3748.4,3748.3,0.001]
[1753557337608,4.39760494,3748.4,3748.3,0.001]
[1753557337818,34.39760494,3748.4,3748.3,0.001]
[1753557338048,31.72980001,3748.4,3748.3,0.001]
[1753557338225,34.39760494,3748.4,3748.3,0.001]
[1753557339144,31.72980001,3748.4,3748.3,0.001]
[1753557339350,1.72980001,3748.4,3748.3,0.001]
[1753557339645,4.39760494,3748.4,3748.3,0.001]
[1753557340431,1.72980001,3748.4,3748.3,0.001]
[1753557345132,1e-08,3748.4,3748.3,0.001]
[1753557345336,1e-08,3748.4,3748.3,3.2865761]
[1753557345627,1e-08,3748.4,3748.3,3.7299761]
[1753557346122,1e-08,3748.4,3748.3,4.36987469]
[1753557346322,1e-08,3748.4,3748.3,5.14655345]
[1753557348264,1e-08,3748.4,3748.3,5.11987469]
[1753557350764,1e-08,3748.4,3748.3,5.14655345]
[1753557352277,1e-08,3748.4,3748.3,5.11987469]
[1753557352576,1e-08,3748.4,3748.3,5.14655345]
[1753557354675,1e-08,3748.4,3748.3,5.11987469]
[1753557354984,1e-08,3748.4,3748.3,4.67647469]
[1753557356178,1e-08,3748.4,3748.3,4.19237469]
[1753557357475,1e-08,3748.4,3748.3,4.67647469]
[1753557359886,1e-08,3748.4,3748.3,5.11987469]
[1753557360489,1e-08,3748.4,3748.3,7.53787469]
[1753557373784,1e-08,3748.4,3748.3,7.09447469]
[1753557375696,1e-08,3748.4,3748.3,6.61037469]
[1753557377303,1e-08,3748.4,3748.3,7.07677469]
[1753557377484,1e-08,3748.4,3748.3,6.61037469]
[1753557379806,1e-08,3748.4,3748.3,7.07677469]
[1753557380715,1e-08,3748.4,3748.3,6.61037469]
[1753557382176,0.95390001,3748.4,3748.3,5.86037469]
[1753557382808,1e-08,3748.4,3748.3,5.86037469]
[1753557386027,0.95390001,3748.4,3748.3,5.86037469]
[1753557386519,1e-08,3748.4,3748.3,5.85937469]
[1753557386729,0.95390001,3748.4,3748.3,5.85937469]
[1753557387718,0.49280001,3748.4,3748.3,5.85937469]
[1753557387896,1e-08,3748.4,3748.3,5.85937469]
[1753557388225,1e-08,3748.4,3748.3,6.32577469]
[1753557388401,1e-08,3748.4,3748.3,5.85937469]
[1753557391031,0.49280001,3748.4,3748.3,5.85937469]
[1753557394617,1e-08,3748.4,3748.3,5.85937469]
[1753557401744,0.49280001,3748.4,3748.3,5.85937469]
[1753557407258,1e-08,3748.4,3748.3,3.44237469]
[1753557407552,1e-08,3748.4,3748.3,5.2194761]
[1753557407553,0.93340001,3748.4,3748.3,5.2194761]
[1753557409766,1.72880001,3748.4,3748.3,5.2194761]
[1753557412168,1.72880001,3748.4,3748.3,2.8024761]
[1753557412366,1.72880001,3748.4,3748.3,5.2194761]
[1753557412782,1.72880001,3748.4,3748.3,2.8024761]
[1753557413294,1.90168001,3748.4,3748.3,0.1346]
[1753557413594,1.90168001,3748.4,3748.3,2.8024761]
[1753557417205,1.72880001,3748.4,3748.3,2.8024761]
[1753557422737,1.72880001,3748.4,3748.3,0.1346]
[1753557422926,1.72880001,3748.4,3748.3,2.8024761]
[1753557424323,1.72880001,3748.4,3748.3,0.1346]
[1753557424522,1.72880001,3748.4,3748.3,0.001]
[1753557429288,1e-08,3748.4,3748.3,2.8024761]
[1753557429627,1e-08,3748.4,3748.3,3.2841761]
[1753557429813,1e-08,3748.4,3748.3,2.8024761]
[1753557430196,1e-08,3748.4,3748.3,3.2841761]
[1753557433108,1e-08,3748.4,3748.3,2.8024761]
[1753557435235,0.91550001,3748.4,3748.3,2.8024761]
[1753557436514,1.72830001,3748.4,3748.3,2.8024761]
[1753557436912,1.27680001,3748.4,3748.3,2.8024761]
[1753557437142,1.72830001,3748.4,3748.3,2.8024761]
[1753557441949,1.72830001,3748.4,3748.3,0.1346]
[1753557442524,5.75730001,3748.4,3748.3,0.001]
[1753557443946,8.42510494,3748.4,3748.3,0.001]
[1753557444419,38.42510494,3748.4,3748.3,0.001]
[1753557445458,35.75730001,3748.4,3748.3,0.001]
[1753557446153,38.42510494,3748.4,3748.3,0.001]
[1753557446644,38.55870494,3748.4,3748.3,0.001]
[1753557448752,41.55870494,3748.4,3748.3,0.001]
[1753557448936,11.55870494,3748.4,3748.3,0.001]
[1753557449140,41.55870494,3748.4,3748.3,0.001]
[1753557450148,38.55870494,3748.4,3748.3,0.001]
[1753557452549,39.10870494,3748.4,3748.3,0.001]
[1753557454040,42.10870494,3748.4,3748.3,0.001]
[1753557455143,49.28870494,3748.4,3748.3,0.001]
[1753557459059,19.28870494,3748.4,3748.3,0.001]
[1753557459454,49.28870494,3748.4,3748.3,0.001]
[1753557466054,44.34420494,3748.4,3748.3,0.001]
[1753557466268,48.37320494,3748.4,3748.3,0.001]
[1753557466567,10.31360001,3748.4,3748.3,0.001]
[1753557466785,14.20900001,3748.4,3748.3,0.4804]
[1753557466936,14.20900001,3748.4,3748.3,0.953]
[1753557467468,7.18000001,3748.4,3748.3,0.953]
[1753557467672,11.21000001,3748.4,3748.3,0.953]
[1753557467868,14.21000001,3748.4,3748.3,0.953]
[1753557468069,10.18000001,3748.4,3748.3,0.953]
[1753557468461,44.21000001,3748.4,3748.3,0.953]
[1753557470138,44.21000001,3748.4,3748.3,0.001]
[1753557471570,14.21000001,3748.4,3748.3,0.001]
[1753557471738,14.21000001,3748.4,3748.3,0.4804]
[1753557472376,44.21000001,3748.4,3748.3,0.4804]
[1753557472588,14.21000001,3748.4,3748.3,0.4804]
[1753557473872,14.21000001,3748.4,3748.3,0.953]
[1753557474579,14.20900001,3748.4,3748.3,0.953]
[1753557474779,14.20900001,3748.4,3748.3,0.4804]
[1753557477187,10.18000001,3748.4,3748.3,0.4804]
[1753557477481,14.20900001,3748.4,3748.3,0.4804]
[1753557477782,14.20900001,3748.4,3748.3,0.001]
[1753557482495,14.20900001,3748.4,3748.3,0.953]
[1753557482867,10.18000001,3748.4,3748.3,0.4804]
[1753557483071,1e-08,3748.4,3748.3,4.3796761]
[1753557483368,1e-08,3748.4,3748.3,4.95134371]
[1753557483593,0.002,3748.9,3748.8,3.48132027]
[1753557484089,0.002,3748.9,3748.8,4.59359547]
[1753557484989,1e-08,3749.9,3749.8,2.66680889]
[1753557485193,1e-08,3749.9,3749.8,11.4680586]
[1753557485368,0.002,3750.9,3750.1,3.48039555]
[1753557485705,0.002,3750.9,3750.8,3.47989789]
[1753557486068,0.002,3750.9,3750.8,4.43189789]
[1753557489923,0.002,3750.9,3750.8,7.43189789]
[1753557490074,0.002,3750.9,3750.8,8.85017327]
[1753557492597,0.002,3750.9,3750.8,12.90617327]
[1753557495072,0.002,3750.9,3750.8,13.03977327]
[1753557496215,0.002,3750.9,3750.8,16.72954209]
[1753557496606,1e-08,3750.9,3750.8,16.72954209]
[1753557498630,1e-08,3750.9,3750.8,17.27954209]
[1753557503320,1e-08,3750.9,3750.8,13.22354209]
[1753557503528,1e-08,3750.9,3750.8,17.27354209]
[1753557511338,0.002,3751.7,3751.5,2.66560042]
[1753557511660,0.8289,3752.5,3752.4,2.66496109]
[1753557512168,1.2632,3752.5,3752.4,2.79856109]
[1753557513433,1.7263,3752.5,3752.4,2.79856109]
[1753557518650,1.7263,3752.5,3752.4,0.1336]
[1753557518985,1.7263,3752.5,3752.4,2.79856109]
[1753557521296,1.7263,3752.5,3752.4,0.1336]
[1753557521657,1.7263,3752.5,3752.4,2.79856109]
[1753557522984,1.7263,3752.5,3752.4,0.1336]
[1753557523190,1.7243,3752.5,3752.4,0.1336]
[1753557523397,1.7220147,3752.5,3752.4,2.79856109]
[1753557529783,1.7240147,3752.5,3752.4,2.79856109]
[1753557530483,1.2609147,3752.5,3752.4,2.79856109]
[1753557530688,0.002,3752.5,3752.4,3.27936109]
[1753557531630,0.002,3752.5,3752.4,2.79856109]
[1753557531792,0.4404,3752.5,3752.4,2.79856109]
[1753557534117,1.677,3752.5,3752.4,2.79856109]
[1753557534552,3.68976882,3753.8,3752.4,2.79856109]
[1753557534553,30.0,3754.8,3752.8,0.55]
[1753557534729,2.66199559,3756.6,3752.4,10.60550299]
[1753557534730,0.4384,3754.4,3754.3,2.66361239]
[1753557535228,0.8923,3754.4,3754.3,2.66361239]
[1753557536225,1.234,3754.9,3754.3,3.67709195]
[1753557536420,1.234,3754.9,3754.7,2.6632667]
[1753557536658,0.8923,3754.8,3754.0,4.141]
[1753557536854,0.8923,3754.8,3754.3,2.66357145]
[1753557537064,0.8923,3754.7,3754.4,2.66352695]
[1753557537359,0.8923,3754.6,3754.5,2.6634602]
[1753557537543,0.8923,3754.6,3754.4,2.66352447]
[1753557537756,0.8923,3754.5,3754.4,2.66352447]
[1753557537926,0.4539,3754.5,3754.4,2.66352447]
[1753557538128,0.8923,3754.5,3754.4,2.66352447]
[1753557538828,0.8923,3754.5,3754.0,2.66377145]
[1753557539053,3.0,3754.8,3754.3,2.66360871]
[1753557539251,0.8923,3754.4,3754.3,2.66360871]
[1753557540228,1.6879,3754.4,3754.3,2.66360871]
[1753557540653,1.6879,3754.4,3753.7,4.6178]
[1753557540930,0.8923,3754.3,3753.3,4.6178]
[1753557541331,0.7956,3754.4,3754.0,2.66380447]
[1753557541332,0.8923,3754.2,3754.0,2.66380447]
[1753557541558,0.16879,3754.2,3754.1,2.66375429]
[1753557541856,0.7956,3754.4,3754.1,2.66375429]
[1753557542260,0.4384,3754.3,3754.1,2.66375429]
[1753557542457,1.2495,3754.4,3754.1,2.66375429]
[1753557542663,1.2495,3754.4,3753.8,0.4808]
[1753557542664,0.8923,3754.2,3754.0,2.66381209]
[1753557542831,0.7956,3754.4,3754.0,2.66381209]
[1753557543031,0.8923,3754.1,3754.0,2.66381209]
[1753557544573,0.8923,3754.1,3754.0,2.79661209]
[1753557545633,0.4384,3754.1,3754.0,2.79661209]
[1753557546032,3.0,3754.3,3754.2,2.66363125]
[1753557546237,3.8923,3754.3,3754.0,0.1328]
[1753557546473,0.8923,3754.2,3753.9,2.6638271]
[1753557546643,0.8923,3754.1,3753.5,0.4808]
[1753557546984,0.4539,3754.1,3753.8,2.66390984]
[1753557547169,0.4384,3754.0,3753.9,2.66388334]
[1753557547336,0.8923,3754.0,3753.9,2.66388334]
[1753557547538,0.8923,3754.0,3753.9,2.79668334]
[1753557547775,1.6618,3754.0,3753.9,0.1328]
[1753557549040,1.6618,3754.0,3753.0,4.6012]
[1753557549041,1.3195,3753.9,3751.6,0.001]
[1753557549240,0.7695,3752.6,3752.0,0.1336]
[1753557549541,0.8923,3752.5,3752.0,0.1336]
[1753557549742,4.166,3752.4,3751.6,0.001]
[1753557550081,3.0,3752.3,3752.1,0.4808]
[1753557550265,3.0,3752.3,3752.2,0.1336]
[1753557550864,0.7695,3752.6,3752.2,0.1336]
[1753557551061,7.167,3752.3,3752.2,0.1336]
[1753557551284,7.167,3752.3,3751.8,0.4702]
[1753557551487,7.167,3752.3,3752.2,0.1336]
[1753557552057,9.83203211,3752.3,3752.2,0.1336]
[1753557552256,11.42246973,3752.3,3752.2,0.1336]
[1753557552491,10.76383211,3752.3,3752.2,0.1336]
[1753557552870,2.66529208,3752.0,3751.6,0.001]
[1753557553190,4.164,3751.9,3751.6,0.001]
[1753557553368,4.6264,3751.9,3751.6,0.001]
[1753557553563,4.6264,3751.9,3751.8,0.1336]
[1753557555698,7.29171623,3751.9,3751.8,0.1336]
[1753557555992,9.82931623,3751.9,3751.8,0.1336]
[1753557556163,10.76111623,3751.9,3751.8,0.1336]
[1753557556575,9.82931623,3751.9,3751.8,0.1336]
[1753557556758,5.66545832,3751.7,3751.6,0.001]
[1753557556985,36.41735832,3751.7,3751.6,0.001]
[1753557557369,37.34915832,3751.7,3751.6,0.001]
[1753557558182,4.2143,3751.7,3751.6,0.001]
[1753557558385,8.3763,3751.7,3751.6,0.001]
[1753557558593,11.51115832,3751.7,3751.6,0.001]
[1753557558886,8.8457,3751.7,3751.6,0.001]
[1753557560699,7.9119,3751.7,3751.6,0.001]
[1753557560920,7.9119,3751.7,3751.6,0.6173]
[1753557562051,3.0,3751.7,3751.6,2.80012937]
[1753557562208,7.16,3751.7,3751.6,3.28282937]
[1753557562408,7.16,3751.7,3751.6,0.6173]
[1753557562922,7.16,3751.7,3751.6,0.1346]
[1753557563329,3.0,3751.7,3751.6,0.1346]
[1753557563494,4.158,3751.7,3751.6,1.0685]
[1753557564123,0.7733,3752.4,3751.9,2.66530703]
[1753557564617,3.0,3752.2,3752.0,0.6163]
[1753557564820,3.0,3752.2,3752.1,0.4827]
[1753557564989,3.0,3752.2,3752.1,3.28147416]
[1753557565611,3.0,3752.2,3752.1,0.1336]
[1753557566148,3.4624,3752.2,3752.1,0.1336]
[1753557566342,3.0,3752.2,3752.1,0.1336]
[1753557566547,3.4624,3752.2,3752.1,0.1336]
[1753557569154,7.36650313,3752.2,3751.6,0.001]
[1753557569315,37.74898133,3752.1,3751.9,0.1336]
[1753557569648,30.0,3752.0,3751.9,0.1336]
[1753557569848,0.9318,3752.0,3751.9,0.1336]
[1753557570055,30.9318,3752.0,3751.9,0.1336]
[1753557570349,0.9318,3752.0,3751.7,0.1336]
[1753557570562,4.152,3751.9,3751.7,0.1336]
[1753557571048,0.4624,3751.8,3751.7,0.1336]
[1753557572815,0.9318,3751.8,3751.7,0.1336]
[1753557574356,0.4624,3751.8,3751.7,0.1336]
[1753557575358,4.152,3751.9,3751.7,0.1336]
[1753557576229,4.6144,3751.9,3751.7,0.1336]
[1753557577749,5.0838,3751.9,3751.7,0.1336]
[1753557578286,3.9318,3751.8,3751.7,0.1336]
[1753557578578,3.9318,3751.8,3751.6,0.001]
[1753557578579,5.66545832,3751.7,3751.6,0.001]
[1753557578733,9.80745832,3751.7,3751.6,0.001]
[1753557578938,10.73925832,3751.7,3751.6,0.001]
[1753557579236,8.0738,3751.7,3751.6,0.001]
[1753557581248,10.73925832,3751.7,3751.6,0.001]
[1753557581843,8.0738,3751.7,3751.6,0.001]
[1753557582043,8.0708,3751.7,3751.6,0.001]
[1753557582258,3.9318,3751.7,3751.6,0.001]
[1753557582580,8.0698,3751.7,3751.6,0.001]
[1753557583083,10.73525832,3751.7,3751.6,0.001]
[1753557583444,36.59725832,3751.7,3751.6,0.001]
[1753557583646,40.73425832,3751.7,3751.6,0.001]
[1753557584684,41.28425832,3751.7,3751.6,0.001]
[1753557585069,41.41785832,3751.7,3751.6,0.001]
[1753557587550,37.28085832,3751.7,3751.6,0.001]
[1753557587750,41.41485832,3751.7,3751.6,0.001]
[1753557589760,42.17855832,3751.7,3751.6,0.001]
[1753557590788,42.42825607,3751.7,3751.6,0.001]
[1753557592571,46.11212994,3751.7,3751.6,0.001]
[1753557592759,46.55058556,3751.7,3751.6,0.001]
[1753557592947,46.11212994,3751.7,3751.6,0.001]
[1753557595267,16.11212994,3751.7,3751.6,0.001]
[1753557595477,7.03842682,3750.9,3750.8,0.001]
[1753557595678,41.29902682,3750.9,3750.8,0.001]
[1753557595981,42.24962682,3750.9,3750.8,0.001]
[1753557596485,42.49874108,3750.9,3750.8,0.001]
[1753557597793,12.49874108,3750.9,3750.8,0.001]
[1753557597970,42.49874108,3750.9,3750.8,0.001]
[1753557598297,42.24962682,3750.9,3750.8,0.001]
[1753557598504,42.01555913,3750.9,3750.8,0.001]
[1753557598656,42.56547258,3750.9,3750.8,1e-08]
[1753557599095,6.97199555,3750.1,3749.0,0.4529]
[1753557599407,6.97199555,3750.1,3749.2,0.4529]
[1753557599408,41.09899555,3750.1,3749.2,0.4529]
[1753557599695,42.04959555,3750.1,3749.2,0.4529]
[1753557600257,42.04959555,3750.1,3749.3,0.4529]
[1753557600504,42.04959555,3750.1,3749.5,0.4529]
[1753557602164,32.66723567,3749.2,3749.1,0.4529]
[1753557602484,39.79323567,3749.2,3749.1,0.4529]
[1753557603657,2.66752027,3748.8,3748.7,0.4689]
[1753557603860,30.0,3748.6,3748.0,0.001]
[1753557604058,4.125,3748.5,3748.4,0.4689]
[1753557604359,3.0,3748.4,3748.0,0.001]
[1753557604960,7.12174255,3748.4,3748.0,0.001]
[1753557605176,6.46310493,3748.4,3748.0,0.4699]
[1753557605396,3.0,3748.4,3748.3,0.4539]
[1753557605566,3.0,3748.4,3748.3,0.9228]
[1753557605772,3.0,3748.4,3748.3,0.001]
[1753557605773,5.66780493,3748.4,3748.3,0.001]
[1753557605995,5.66780493,3748.4,3748.3,0.4539]
[1753557606196,3.0,3748.4,3748.3,0.4539]
[1753557606406,3.0,3748.4,3748.3,0.9228]
[1753557608021,4.123,3748.4,3748.3,0.9228]
[1753557608402,7.123,3748.4,3748.3,0.4539]
[1753557608604,7.123,3748.4,3748.3,0.5875]
[1753557609021,7.123,3748.4,3748.3,1.0564]
[1753557611816,7.121,3748.4,3748.3,1.0564]
[1753557614513,7.9042,3748.4,3748.3,0.1346]
[1753557614835,11.02860493,3748.4,3748.3,0.1346]
[1753557615049,41.02860493,3748.4,3748.3,0.001]
[1753557615232,41.50020493,3748.4,3748.3,0.001]